bitfinex/quotes_ETHUSD_20240729
["timestamp","ask_amount","ask_price","bid_price","bid_amount"]
[1722234866792,2.4735,3387.9,3387.6,2.36154]
[1722234867274,0.30857019,3388.0,3387.4,2.36169]
[1722234867916,0.30857019,3388.0,3387.5,2.36162]
[1722234868094,0.30857019,3388.0,3387.6,0.05887942]
[1722234868294,0.30857019,3388.0,3387.8,2.36139]
[1722234868509,2.4412,3388.4,3387.9,2.36129]
[1722234868807,2.74973831,3388.4,3387.9,2.36129]
[1722234869005,2.74973831,3388.4,3387.7,2.36148]
[1722234869379,5.11078831,3388.4,3387.6,2.36155]
[1722234870502,5.11078831,3388.4,3387.7,2.36148]
[1722234871077,5.11078831,3388.4,3387.5,5.73988786]
[1722234871078,2.36127,3388.0,3387.5,5.73988786]
[1722234871609,2.36115,3388.2,3387.4,2.36169]
[1722234871772,2.36121,3388.1,3387.4,2.36169]
[1722234872676,2.36121,3388.1,3387.2,14.74178]
[1722234872677,2.3614,3387.9,3387.2,14.74178]
[1722234872889,2.36124,3388.1,3387.4,2.36168]
[1722234873090,2.36111,3388.3,3387.5,2.36157]
[1722234873291,2.36111,3388.3,3387.6,2.36153]
[1722234873292,2.36106,3388.3,3387.6,2.36153]
[1722234873696,2.74973831,3388.4,3387.8,2.36139]
[1722234873901,2.74973831,3388.4,3387.6,2.36153]
[1722234874107,2.74973831,3388.4,3387.8,2.36141]
[1722234875238,2.74973831,3388.4,3387.9,2.36132]
[1722234876296,2.74973831,3388.4,3388.0,2.36127]
[1722234876500,0.30853831,3388.4,3388.2,2.36107]
[1722234876732,0.30853831,3388.4,3388.3,2.36106]
[1722234877304,2.2815,3388.9,3388.4,2.36099]
[1722234877531,2.2815,3388.9,3388.1,2.36117]
[1722234877688,2.2815,3388.9,3388.4,2.36099]
[1722234877689,0.30850435,3388.8,3388.4,2.36099]
[1722234878182,0.30850435,3388.8,3388.0,2.36127]
[1722234878383,0.30850435,3388.8,3388.2,2.36112]
[1722234878813,0.30850435,3388.8,3388.3,2.36105]
[1722234879404,4.92726,3389.5,3388.6,2.36085]
[1722234879405,2.36037,3389.3,3388.6,2.36085]
[1722234879633,2.36048,3389.2,3388.5,2.36092]
[1722234880130,2.36059,3389.0,3388.3,8.10094786]
[1722234880432,2.36048,3389.2,3388.5,2.36091]
[1722234880931,2.36048,3389.2,3388.3,8.10094786]
[1722234881103,2.36091,3388.6,3388.3,5.73988786]
[1722234881304,2.36091,3388.6,3387.8,5.73988786]
[1722234881547,2.36091,3388.6,3388.0,2.36126]
[1722234881828,2.36091,3388.6,3387.8,8.10128786]
[1722234882029,2.36091,3388.6,3387.9,2.36134]
[1722234882700,4.85588,3388.7,3387.8,5.73988786]
[1722234882900,4.85588,3388.7,3388.0,2.36126]
[1722234883301,4.85588,3388.7,3387.8,5.73988786]
[1722234883503,2.36099,3388.4,3387.8,5.73988786]
[1722234884107,2.36085,3388.6,3387.8,8.10129786]
[1722234884441,2.4951,3388.7,3387.8,8.10129786]
[1722234884594,2.4951,3388.7,3387.9,2.36134]
[1722234884788,2.4951,3388.7,3388.1,2.36116]
[1722234884990,2.4951,3388.7,3387.9,2.36134]
[1722234885228,2.4951,3388.7,3388.2,2.36113]
[1722234885451,2.4951,3388.7,3388.0,2.36123]
[1722234885751,2.4951,3388.7,3388.1,2.36116]
[1722234885935,2.4951,3388.7,3387.9,2.36134]
[1722234886232,2.4951,3388.7,3388.2,2.36113]
[1722234886438,2.4951,3388.7,3388.0,2.36126]
[1722234886992,2.36086,3388.6,3387.8,5.73988786]
[1722234887234,2.36086,3388.6,3387.9,2.36134]
[1722234887440,2.36097,3388.5,3387.8,5.73988786]
[1722234887816,2.36097,3388.5,3387.8,8.10128786]
[1722234888845,2.36099,3388.4,3387.8,8.10128786]
[1722234889457,2.36106,3388.3,3387.8,5.73988786]
[1722234890708,2.36122,3388.1,3387.8,5.73988786]
[1722234890947,4.70655,3387.6,3387.4,5.73988786]
[1722234891168,4.70655,3387.6,3386.9,2.36199]
[1722234891169,4.70655,3387.6,3386.9,8.10192786]
[1722234891441,2.345,3387.6,3386.9,5.73988786]
[1722234891647,2.36162,3387.5,3386.9,5.73988786]
[1722234892444,2.345,3387.6,3386.9,5.73988786]
[1722234892445,2.345,3387.6,3386.9,8.10191786]
[1722234892612,2.345,3387.6,3387.1,2.36188]
[1722234892937,2.2535,3388.2,3387.4,2.36162]
[1722234893152,2.2535,3388.2,3387.6,2.36153]
[1722234893486,5.2535,3388.2,3387.7,2.36142]
[1722234893596,2.2535,3388.2,3387.5,2.36159]
[1722234893796,2.2535,3388.2,3387.8,2.36141]
[1722234894337,4.61463,3388.2,3387.4,2.36164]
[1722234894539,2.36126,3388.1,3387.4,2.36164]
[1722234894831,4.61463,3388.2,3387.5,2.36155]
[1722234895033,0.30850817,3388.1,3387.8,2.36136]
[1722234895232,0.30850817,3388.1,3387.6,2.36153]
[1722234895598,0.30850817,3388.1,3387.7,2.36148]
[1722234896636,0.30850817,3388.1,3387.4,2.36168]
[1722234896939,0.30850817,3388.1,3387.5,2.36157]
[1722234897601,2.66970817,3388.1,3387.4,2.36168]
[1722234898835,3.69813499,3388.1,3387.4,2.36168]
[1722234899006,2.36127,3388.0,3387.1,2.36189]
[1722234899204,3.69814499,3388.1,3387.1,2.36186]
[1722234899543,2.36127,3388.0,3387.1,2.36186]
[1722234899750,2.36127,3388.0,3387.3,2.36171]
[1722234900301,0.30850817,3388.1,3387.5,2.36155]
[1722234900544,2.36139,3387.9,3387.1,2.36188]
[1722234901063,2.36141,3387.8,3387.1,2.36188]
[1722234901844,2.36134,3388.0,3387.3,2.36176]
[1722234902247,0.30850817,3388.1,3387.5,2.36157]
[1722234902541,0.30850817,3388.1,3387.6,2.36154]
[1722234902851,0.30850817,3388.1,3387.3,2.36174]
[1722234903178,0.30850817,3388.1,3387.9,2.36133]
[1722234903385,2.3076,3388.7,3388.0,2.36127]
[1722234903686,0.30851152,3388.6,3388.0,2.36127]
[1722234903974,0.30851152,3388.6,3387.7,5.73988786]
[1722234903975,0.30851152,3388.6,3388.2,2.36113]
[1722234904328,0.30851152,3388.6,3388.0,2.36122]
[1722234904730,2.66937152,3388.6,3387.9,2.36134]
[1722234905029,1.04228067,3388.6,3387.7,5.73988786]
[1722234905259,4.67951,3388.3,3387.7,5.73988786]
[1722234906077,2.36113,3388.2,3387.7,5.73988786]
[1722234906986,2.36132,3388.0,3387.7,5.73988786]
[1722234907188,2.36121,3388.1,3387.2,8.10166786]
[1722234907497,2.36122,3388.1,3387.3,2.36171]
[1722234907645,2.36133,3388.0,3387.3,2.36171]
[1722234907843,2.36156,3387.6,3387.2,5.73988786]
[1722234908089,4.74203,3387.5,3387.2,5.73988786]
[1722234908378,4.74202,3387.5,3387.2,5.73988786]
[1722234908684,2.3804,3387.5,3386.8,2.36209]
[1722234908986,4.74203,3387.5,3386.8,2.36209]
[1722234909184,2.36169,3387.4,3386.7,8.10200786]
[1722234909366,4.74207,3387.5,3386.8,2.3621]
[1722234909689,2.3804,3387.5,3386.7,8.10205786]
[1722234909873,2.3617,3387.4,3386.7,8.10205786]
[1722234910059,2.3804,3387.5,3386.7,5.73988786]
[1722234910261,2.854597,3387.5,3386.7,5.73988786]
[1722234910585,2.36201,3387.0,3386.7,5.73988786]
[1722234911191,2.3029,3386.8,3386.7,5.73988786]
[1722234911516,2.3029,3386.8,3386.2,2.36252]
[1722234911849,2.3029,3386.8,3386.4,2.36238]
[1722234912187,5.36171,3387.4,3386.1,5.73988786]
[1722234912188,2.3029,3387.3,3386.5,2.36231]
[1722234912387,2.3029,3387.3,3386.8,2.36205]
[1722234912752,2.3029,3387.3,3386.6,2.36224]
[1722234913305,2.3029,3387.3,3387.0,2.36194]
[1722234914003,2.3029,3387.3,3387.1,2.36189]
[1722234916111,2.36141,3387.8,3387.2,2.36183]
[1722234916112,2.4885,3387.8,3387.2,2.36183]
[1722234916391,2.4885,3387.8,3387.4,2.36164]
[1722234916771,2.4885,3387.8,3387.2,2.36183]
[1722234916970,2.4885,3387.8,3387.3,2.36175]
[1722234917489,2.4885,3387.8,3387.2,2.36183]
[1722234917694,2.4885,3387.8,3387.5,2.36161]
[1722234917894,2.4885,3387.8,3387.3,2.36171]
[1722234918099,2.28,3388.9,3388.3,2.36105]
[1722234918400,2.28,3388.9,3388.5,2.36092]
[1722234919300,2.28,3388.9,3388.3,2.36102]
[1722234919508,4.6407,3388.9,3388.1,2.36114]
[1722234919811,2.36072,3388.8,3387.9,2.36133]
[1722234920019,2.36079,3388.7,3388.0,2.36121]
[1722234920212,2.66936152,3388.6,3388.0,2.36121]
[1722234920370,2.66936152,3388.6,3387.8,5.73988786]
[1722234920371,2.66936152,3388.6,3387.8,8.10124786]
[1722234920572,0.30851152,3388.6,3387.8,8.10129786]
[1722234920803,2.66936152,3388.6,3387.8,8.10129786]
[1722234920971,2.66936152,3388.6,3387.9,2.36133]
[1722234921597,2.36093,3388.5,3387.9,2.36133]
[1722234921816,0.30851152,3388.6,3387.9,2.36133]
[1722234921986,2.66938152,3388.6,3387.9,2.36133]
[1722234922302,0.30851152,3388.6,3388.1,2.36117]
[1722234922515,0.30851152,3388.6,3388.2,2.36113]
[1722234923020,0.30851152,3388.6,3388.5,2.36092]
[1722234924891,0.30851152,3388.6,3388.5,4.72184]
[1722234925140,2.3519,3389.3,3388.8,2.36071]
[1722234925281,0.30844182,3389.5,3388.9,2.36059]
[1722234925478,0.30844182,3389.5,3389.0,2.36057]
[1722234925781,2.2734,3390.1,3389.7,2.36006]
[1722234926013,2.2734,3390.1,3389.8,2.36001]
[1722234926213,2.7367,3390.1,3389.3,5.73988786]
[1722234926384,2.7367,3390.1,3389.7,2.36007]
[1722234926385,2.2734,3390.1,3389.7,2.36007]
[1722234926578,2.2734,3390.1,3389.8,2.36]
[1722234926821,2.2734,3390.1,3389.5,2.3602]
[1722234927120,2.2734,3390.1,3389.7,2.36004]
[1722234927358,2.2734,3390.1,3389.8,2.35999]
[1722234928994,2.2734,3390.1,3389.6,2.36014]
[1722234929513,2.2734,3390.1,3389.7,2.36008]
[1722234931393,2.2734,3390.1,3389.8,2.36001]
[1722234931740,3.0,3391.0,3390.2,2.35969]
[1722234931741,2.3243,3390.7,3390.2,2.35969]
[1722234932048,2.3243,3390.7,3389.8,2.35997]
[1722234932188,0.23243,3390.6,3389.8,2.35997]
[1722234932534,2.35961,3390.4,3389.7,2.36008]
[1722234932692,2.35987,3390.1,3389.3,8.10023786]
[1722234933001,0.23243,3390.6,3389.3,5.73988786]
[1722234933002,4.64559,3390.0,3389.3,5.73988786]
[1722234933530,2.2857,3390.0,3389.3,8.10024786]
[1722234933696,2.2857,3390.0,3389.5,2.36022]
[1722234935401,2.2857,3390.0,3389.6,2.36015]
[1722234935598,2.2857,3390.0,3389.7,2.36006]
[1722234935781,2.2857,3390.0,3389.3,8.10023786]
[1722234935989,2.2857,3390.0,3389.4,2.36029]
[1722234936329,2.2857,3390.0,3389.5,2.36021]
[1722234936534,2.2857,3390.0,3389.4,2.36029]
[1722234936825,2.2857,3390.0,3389.3,5.73988786]
[1722234936826,2.36002,3389.8,3389.3,5.73988786]
[1722234936983,2.2857,3390.0,3389.3,8.10023786]
[1722234937184,2.2857,3390.0,3389.4,2.36026]
[1722234937392,2.2857,3390.0,3389.3,5.73988786]
[1722234937393,2.2857,3390.0,3389.5,2.36022]
[1722234937695,4.64558,3390.0,3389.3,5.73988786]
[1722234938097,4.64558,3390.0,3389.3,8.10024786]
[1722234938301,2.35995,3389.9,3389.3,5.73988786]
[1722234938847,2.35995,3389.9,3389.3,8.10023786]
[1722234939138,2.2857,3390.0,3389.5,2.36021]
[1722234939650,2.2857,3390.0,3389.7,2.36004]
[1722234940341,2.3865,3390.4,3389.8,2.36]
[1722234940705,4.7461,3390.4,3389.6,2.3601]
[1722234940905,2.35967,3390.3,3389.6,2.3601]
[1722234941601,2.35967,3390.3,3389.7,2.36008]
[1722234942344,2.3865,3390.4,3389.6,2.36015]
[1722234942345,2.35978,3390.2,3389.6,2.36015]
[1722234943108,4.7461,3390.4,3389.7,2.36008]
[1722234943733,0.30841812,3390.3,3389.7,2.36008]
[1722234944041,2.66808812,3390.3,3389.7,2.36008]
[1722234944700,0.30841812,3390.3,3389.7,2.36008]
[1722234944949,0.30841812,3390.3,3389.8,2.36001]
[1722234945100,0.30841812,3390.3,3389.6,2.3601]
[1722234945297,2.66808812,3390.3,3389.6,2.3601]
[1722234945509,2.66808812,3390.3,3389.7,2.36008]
[1722234945808,0.30841812,3390.3,3389.8,2.36]
[1722234946804,0.30841812,3390.3,3389.9,2.35994]
[1722234948743,2.66808812,3390.3,3389.7,2.36009]
[1722234948908,2.66808812,3390.3,3389.5,2.36021]
[1722234948909,2.35974,3390.2,3389.5,2.36021]
[1722234949241,2.66809812,3390.3,3389.5,2.36021]
[1722234949806,2.66809812,3390.3,3389.7,2.36008]
[1722234950453,2.35976,3390.2,3389.5,2.36021]
[1722234950924,2.35976,3390.2,3389.6,2.36015]
[1722234951421,0.30841812,3390.3,3389.6,2.36015]
[1722234952057,2.66808812,3390.3,3389.6,2.36015]
[1722234952959,2.35976,3390.2,3389.4,2.36025]
[1722234953161,2.35976,3390.2,3389.3,8.10022786]
[1722234953519,2.35976,3390.2,3389.5,2.36018]
[1722234953719,2.35988,3390.0,3389.3,5.73988786]
[1722234953962,2.35976,3390.2,3389.5,2.36022]
[1722234954160,2.35981,3390.1,3389.3,8.10024786]
[1722234954361,2.35981,3390.1,3389.4,2.36029]
[1722234954722,2.35981,3390.1,3389.5,2.36022]
[1722234954919,2.04699128,3391.1,3389.5,2.36022]
[1722234955124,2.35978,3390.2,3389.7,5.73988786]
[1722234955458,2.35978,3390.2,3389.5,2.36022]
[1722234955459,2.35981,3390.1,3389.5,2.36022]
[1722234955658,2.35981,3390.1,3389.4,5.36029]
[1722234957337,2.35981,3390.1,3389.3,5.73988786]
[1722234957338,2.36006,3389.8,3389.3,5.73988786]
[1722234957545,2.832058,3389.8,3389.3,5.73988786]
[1722234957751,2.36006,3389.8,3389.3,5.73988786]
[1722234957953,2.36017,3389.6,3389.3,5.73988786]
[1722234958271,4.67787,3389.6,3389.3,5.73988786]
[1722234958475,2.3177,3389.6,3389.3,5.73988786]
[1722234959054,2.3177,3389.6,3389.3,8.10024786]
[1722234959266,2.3177,3389.6,3389.3,5.73988786]
[1722234959465,2.36029,3389.4,3389.3,5.73988786]
[1722234959664,2.3177,3389.6,3388.9,2.36064]
[1722234960037,2.3177,3389.6,3389.0,2.36057]
[1722234960237,2.3177,3389.6,3388.9,2.36059]
[1722234960462,2.3177,3389.6,3389.1,2.36044]
[1722234960678,2.3177,3389.6,3388.9,2.36059]
[1722234961035,2.36024,3389.5,3388.9,2.36059]
[1722234961242,2.3177,3389.6,3388.7,8.10066786]
[1722234961550,4.67786,3389.6,3388.8,2.36071]
[1722234961781,2.36041,3389.3,3388.7,5.73988786]
[1722234961957,2.36057,3389.1,3388.7,5.73988786]
[1722234962343,4.75998,3388.9,3388.7,5.73988786]
[1722234962552,4.75998,3388.9,3387.8,2.3784]
[1722234962553,2.36071,3388.8,3387.8,2.36139]
[1722234962903,2.36079,3388.7,3387.8,2.36139]
[1722234963044,2.36079,3388.7,3388.0,2.36121]
[1722234963761,2.36072,3388.8,3388.1,2.3612]
[1722234963987,2.3993,3388.9,3387.9,2.36134]
[1722234963988,2.36078,3388.7,3387.9,2.36134]
[1722234964196,2.36086,3388.6,3387.9,2.36134]
[1722234964395,2.36094,3388.5,3387.8,2.3614]
[1722234965070,2.36094,3388.5,3387.6,5.36154]
[1722234965071,2.361,3388.4,3387.7,2.36148]
[1722234965265,2.361,3388.4,3387.8,2.36141]
[1722234966574,2.3609,3388.6,3387.9,2.36129]
[1722234966781,4.75996,3388.9,3387.5,3.0]
[1722234966988,2.567,3389.4,3388.2,2.36107]
[1722234966989,2.4193,3389.4,3388.2,2.36107]
[1722234967300,2.36009,3389.7,3389.0,2.36055]
[1722234967658,2.4193,3389.8,3389.1,2.36048]
[1722234967861,2.35983,3390.1,3388.8,2.3175]
[1722234968165,2.35983,3390.1,3389.0,2.36055]
[1722234968474,2.35983,3390.1,3388.9,0.55]
[1722234968475,2.35995,3389.9,3389.3,2.36036]
[1722234968741,2.35983,3390.1,3389.3,2.36036]
[1722234968881,2.35983,3390.1,3389.4,2.36029]
[1722234969079,2.35967,3390.3,3389.5,2.36022]
[1722234969281,2.35967,3390.3,3389.4,2.36029]
[1722234969485,2.35967,3390.3,3389.7,2.36009]
[1722234969695,2.35967,3390.3,3389.5,2.36018]
[1722234969696,2.35976,3390.2,3389.5,2.36018]
[1722234971243,2.35976,3390.2,3389.0,3.0]
[1722234971244,2.2919,3390.4,3389.8,2.36]
[1722234971366,2.2919,3390.4,3389.7,2.36008]
[1722234971703,2.35967,3390.3,3389.5,4.72038]
[1722234971915,2.35967,3390.3,3389.6,2.36011]
[1722234972124,2.35967,3390.3,3389.5,2.36017]
[1722234972278,2.35967,3390.3,3389.6,2.36014]
[1722234972504,2.2919,3390.4,3389.2,3.0]
[1722234972505,4.65152,3390.4,3389.2,5.36042]
[1722234972686,4.65152,3390.4,3389.4,2.36023]
[1722234972687,2.35983,3390.1,3389.4,2.36023]
[1722234973067,2.35995,3389.9,3389.2,8.73988786]
[1722234973267,2.35981,3390.1,3389.2,8.73988786]
[1722234973595,2.35988,3390.0,3389.3,2.36036]
[1722234973911,2.831843,3390.0,3389.3,2.36036]
[1722234974115,2.35975,3390.2,3389.2,5.73988786]
[1722234974116,2.36014,3389.7,3389.2,5.73988786]
[1722234974415,2.35995,3389.9,3389.2,5.73988786]
[1722234974565,2.35995,3389.9,3389.2,8.10030786]
[1722234976213,2.35991,3390.0,3389.3,2.36035]
[1722234976595,2.35995,3389.9,3389.3,2.36035]
[1722234977025,2.35984,3390.1,3389.3,2.36035]
[1722234977298,2.35992,3390.0,3389.3,2.36035]
[1722234978034,2.35992,3390.0,3389.2,5.73988786]
[1722234978235,2.46700198,3389.9,3389.2,5.73988786]
[1722234978549,2.4078,3389.9,3389.2,5.73988786]
[1722234979039,4.7675,3390.3,3389.2,5.73988786]
[1722234979195,2.4078,3390.3,3389.2,5.73988786]
[1722234979390,2.4078,3390.3,3389.7,2.36002]
[1722234979600,2.4078,3390.3,3389.8,2.36001]
[1722234980455,2.4078,3390.3,3389.6,2.36016]
[1722234980599,2.4078,3390.3,3389.7,2.36007]
[1722234980795,2.4078,3390.3,3389.6,2.36016]
[1722234981113,2.35997,3389.9,3389.2,5.73988786]
[1722234981343,2.35992,3390.0,3389.2,5.73988786]
[1722234981672,2.64858,3390.3,3389.2,8.10026786]
[1722234981673,2.35976,3390.2,3389.2,8.10026786]
[1722234981844,2.35996,3389.9,3389.2,8.10026786]
[1722234982051,2.36003,3389.8,3389.2,8.10026786]
[1722234984633,2.36003,3389.8,3389.2,2.36038]
[1722234984837,4.71983,3390.0,3389.2,2.36038]
[1722234985056,2.35989,3390.0,3389.2,2.36038]
[1722234985431,2.35996,3389.9,3389.2,2.36038]
[1722234985776,2.36002,3389.8,3389.2,2.36038]
[1722234989382,2.3601,3389.7,3389.0,2.36057]
[1722234990046,2.3601,3389.7,3389.1,2.3605]
[1722234990250,2.35999,3389.9,3389.1,2.3605]
[1722234990550,2.36035,3389.4,3388.9,5.73988786]
[1722234991683,2.4245,3389.5,3388.9,5.73988786]
[1722234991684,2.36056,3389.1,3388.9,5.73988786]
[1722234991852,4.72114,3389.0,3388.9,5.73988786]
[1722234992198,2.36074,3388.8,3388.3,5.73988786]
[1722234992758,2.36079,3388.7,3388.3,5.73988786]
[1722234993197,2.36074,3388.8,3388.3,5.73988786]
[1722234993691,2.36033,3389.4,3388.3,5.73988786]
[1722234993692,2.36065,3388.9,3388.3,8.10094786]
[1722234994791,2.36065,3388.9,3388.3,5.73988786]
[1722234994998,2.36072,3388.8,3388.3,5.73988786]
[1722234996258,2.3608,3388.7,3388.3,5.73988786]
[1722234996695,2.36093,3388.5,3387.5,3.0]
[1722234996869,4.81332,3388.6,3388.0,2.36127]
[1722234997271,4.81332,3388.6,3387.7,2.36142]
[1722234997473,4.81332,3388.6,3388.0,2.36127]
[1722234997983,2.36093,3388.5,3387.8,2.36137]
[1722234998203,2.36092,3388.6,3387.7,2.36142]
[1722234998700,2.36092,3388.6,3388.0,2.36127]
[1722234999497,2.36073,3388.8,3388.1,2.3612]
[1722234999699,2.36065,3388.9,3388.3,2.36106]
[1722234999998,2.36065,3388.9,3388.1,2.3612]
[1722235000199,2.36065,3388.9,3388.2,2.36113]
[1722235001159,2.36065,3388.9,3387.9,2.36133]
[1722235001160,2.36037,3389.3,3388.6,2.36084]
[1722235001359,2.3603,3389.4,3388.6,2.36084]
[1722235001558,2.3603,3389.4,3388.8,2.36071]
[1722235001967,2.3647,3389.6,3388.9,2.36063]
[1722235001968,4.72486,3389.6,3388.9,2.36063]
[1722235002172,5.251972,3389.6,3388.8,2.36071]
[1722235002368,2.3647,3389.6,3389.1,2.36045]
[1722235002593,4.82793,3390.0,3389.1,2.36046]
[1722235002857,4.82793,3390.0,3389.3,2.36035]
[1722235003058,4.82793,3390.0,3389.4,2.36029]
[1722235003261,2.468,3390.0,3389.6,2.36015]
[1722235003485,2.35953,3390.5,3389.6,2.36015]
[1722235003486,2.35975,3390.2,3389.6,2.36015]
[1722235004092,4.80664,3390.4,3389.6,2.36015]
[1722235004256,2.35967,3390.3,3389.6,2.36015]
[1722235004596,2.35972,3390.3,3389.6,2.36015]
[1722235005254,0.05920198,3390.3,3389.3,2.36035]
[1722235005495,0.05920198,3390.3,3389.4,2.36024]
[1722235005496,2.35968,3390.3,3389.4,2.36024]
[1722235005682,2.35979,3390.2,3389.5,2.36021]
[1722235006002,2.35981,3390.1,3389.2,5.73988786]
[1722235006372,2.35996,3389.9,3389.2,8.10027786]
[1722235007216,2.36002,3389.8,3389.2,5.73988786]
[1722235007422,2.36025,3389.5,3389.2,5.73988786]
[1722235007633,2.4242,3389.6,3389.2,5.73988786]
[1722235008681,2.35989,3390.0,3389.3,2.36035]
[1722235009109,4.79871,3390.1,3389.2,5.73988786]
[1722235009110,2.4389,3390.1,3389.2,5.73988786]
[1722235009307,2.4389,3390.1,3389.5,2.36017]
[1722235010297,2.35999,3389.9,3389.2,5.73988786]
[1722235010491,3.454728,3390.1,3389.2,5.73988786]
[1722235010877,3.454728,3390.1,3389.3,2.36035]
[1722235010878,2.35993,3390.0,3389.3,2.36035]
[1722235012683,2.35993,3390.0,3389.2,5.73988786]
[1722235012684,3.454728,3390.1,3389.5,2.36022]
[1722235013029,2.6679929,3390.8,3390.2,2.35969]
[1722235013030,0.3086729,3390.8,3390.2,2.35969]
[1722235013199,0.3086729,3390.8,3390.7,2.35939]
[1722235013600,2.435,3391.2,3390.6,0.05877973]
[1722235013801,2.35784,3393.0,3391.1,2.3591]
[1722235013802,0.30863161,3391.7,3391.1,2.3591]
[1722235013996,0.58219477,3391.7,3391.2,2.35904]
[1722235014181,0.58219477,3391.7,3391.0,2.35918]
[1722235014386,2.94089477,3391.7,3391.0,2.35918]
[1722235014625,0.58219477,3391.7,3390.8,8.09919786]
[1722235014831,2.35884,3391.5,3390.8,5.73988786]
[1722235015136,2.66733161,3391.7,3390.9,2.3592]
[1722235015287,2.66733161,3391.7,3391.0,2.35916]
[1722235015487,2.35877,3391.6,3390.9,2.35924]
[1722235015686,2.427,3391.9,3390.8,5.73988786]
[1722235015930,2.3381,3392.3,3390.9,0.60896524]
[1722235016232,0.26467059,3392.2,3391.0,2.35917]
[1722235016397,2.35869,3391.7,3390.8,8.09918786]
[1722235016599,0.05920198,3391.6,3390.8,5.73988786]
[1722235016925,2.3733,3391.4,3390.8,5.73988786]
[1722235017108,2.3733,3391.4,3390.8,8.09919786]
[1722235017510,2.3733,3391.4,3390.5,2.35951]
[1722235017511,0.05920198,3391.3,3390.5,5.73988786]
[1722235017684,2.3733,3391.4,3390.5,5.73988786]
[1722235017894,0.05920198,3391.3,3390.5,5.73988786]
[1722235018091,2.3733,3391.4,3390.5,5.73988786]
[1722235018314,2.35915,3391.1,3390.5,5.73988786]
[1722235018829,0.31377313,3391.3,3390.5,5.73988786]
[1722235019007,2.35924,3391.0,3390.5,5.73988786]
[1722235019192,2.35924,3391.0,3390.2,2.35973]
[1722235019524,2.35924,3391.0,3390.3,2.35965]
[1722235020024,0.37297511,3391.3,3390.1,8.09968786]
[1722235020025,2.35934,3390.8,3390.1,8.09968786]
[1722235022499,2.3594,3390.7,3390.1,8.09968786]
[1722235022827,2.35947,3390.6,3390.1,5.73988786]
[1722235023432,2.35947,3390.6,3389.6,2.2734]
[1722235023433,2.35974,3390.2,3389.6,5.73988786]
[1722235023634,2.35974,3390.2,3389.5,2.36021]
[1722235024430,2.35982,3390.1,3389.5,2.36021]
[1722235024630,2.41902198,3390.1,3389.3,20.48023786]
[1722235024950,2.2515,3390.6,3389.8,2.35998]
[1722235025094,2.35919,3391.0,3390.2,2.35973]
[1722235025323,6.40942431,3391.0,3390.2,2.35973]
[1722235025526,2.35925,3390.9,3390.0,8.09975786]
[1722235025757,5.35925,3390.9,3390.0,8.09975786]
[1722235025922,2.35933,3390.8,3390.1,2.3598]
[1722235026135,5.35933,3390.8,3390.1,2.3598]
[1722235026479,5.35933,3390.8,3390.2,2.35973]
[1722235026634,5.35933,3390.8,3390.0,5.73988786]
[1722235026635,2.35933,3390.8,3390.0,5.73988786]
[1722235027628,3.0,3390.9,3390.0,5.73988786]
[1722235027629,5.35925,3390.9,3390.0,5.73988786]
[1722235027870,3.0,3390.8,3390.0,8.09970786]
[1722235028027,2.35925,3390.9,3390.0,8.09970786]
[1722235028227,2.35925,3390.9,3390.1,2.35975]
[1722235028537,2.35925,3390.9,3390.0,8.09971786]
[1722235028538,2.4764,3390.8,3390.0,8.09971786]
[1722235028857,5.4764,3390.8,3390.1,2.35979]
[1722235029230,5.4764,3390.8,3390.2,2.35973]
[1722235030028,5.4764,3390.8,3390.0,5.73988786]
[1722235030029,7.83574,3390.8,3390.0,5.73988786]
[1722235030322,7.83574,3390.8,3390.2,2.35973]
[1722235030846,3.0,3390.8,3390.2,2.35973]
[1722235031050,2.66772254,3391.2,3390.2,2.35973]
[1722235031348,5.35913,3391.1,3390.2,2.35973]
[1722235031565,5.35913,3391.1,3390.4,2.35955]
[1722235031767,2.66772254,3391.2,3390.2,2.35973]
[1722235032423,2.66772254,3391.2,3390.5,2.35952]
[1722235032829,0.30868254,3391.2,3390.0,5.73988786]
[1722235033164,1.776,3392.5,3390.0,5.73988786]
[1722235033165,2.3606,3391.7,3391.1,2.35911]
[1722235033679,4.7193,3391.7,3390.9,2.35922]
[1722235033994,2.35876,3391.6,3390.9,2.35922]
[1722235034176,2.35876,3391.6,3391.0,2.35918]
[1722235034663,2.3606,3391.7,3390.9,2.35925]
[1722235034835,2.3606,3391.7,3391.3,2.35892]
[1722235035032,3.0,3392.0,3390.8,5.73988786]
[1722235035233,2.35853,3392.0,3391.3,2.35897]
[1722235035491,6.15874975,3392.0,3391.3,2.35897]
[1722235035633,2.3352,3392.1,3391.4,0.05875203]
[1722235035830,2.3747,3392.7,3392.1,2.3584]
[1722235036075,2.3747,3392.7,3391.4,0.05875203]
[1722235036243,2.3747,3392.7,3391.9,2.35853]
[1722235036574,2.3747,3392.7,3392.2,2.35828]
[1722235037048,2.3747,3392.7,3392.1,2.35841]
[1722235037582,2.3747,3392.7,3392.2,2.35834]
[1722235037749,2.3747,3392.7,3392.3,2.35827]
[1722235038434,2.3747,3392.7,3392.2,2.35833]
[1722235038933,2.3747,3392.7,3392.3,2.35826]
[1722235039334,0.05920198,3392.9,3391.8,2.35858]
[1722235039561,2.35732,3393.7,3392.9,2.35781]
[1722235039762,2.35745,3393.5,3392.6,2.35803]
[1722235039962,0.700509,3393.6,3392.6,2.35803]
[1722235039963,2.35752,3393.4,3392.6,2.35803]
[1722235040173,0.700509,3393.6,3392.5,2.35812]
[1722235040174,2.35766,3393.2,3392.5,2.35812]
[1722235040385,2.2906,3393.0,3392.3,2.35827]
[1722235040578,2.2906,3393.0,3391.6,3.0]
[1722235040579,2.41707198,3392.9,3391.6,3.0]
[1722235040787,2.41707198,3392.9,3392.3,2.35828]